bitfinex/quotes_SOLUSD_20240808
["timestamp","ask_amount","ask_price","bid_price","bid_amount"]
[1723088018275,20.8459176,156.5,156.47,6.3909]
[1723088019098,0.17,156.49,156.47,6.3909]
[1723088021005,0.17,156.49,156.46,10.0]
[1723088021403,0.17,156.49,156.46,16.3913]
[1723088021979,0.34,156.49,156.46,10.0]
[1723088023001,0.17,156.49,156.46,10.0]
[1723088023201,0.34,156.49,156.46,10.0]
[1723088023705,0.17,156.49,156.46,10.0]
[1723088024002,0.34,156.49,156.46,10.0]
[1723088024700,6.3906,156.48,156.46,10.0]
[1723088024900,65.34,156.47,156.46,10.0]
[1723088025275,20.34,156.47,156.46,10.0]
[1723088025688,0.34,156.47,156.46,10.0]
[1723088025889,0.17,156.47,156.46,10.0]
[1723088027480,0.17,156.47,156.46,16.3914]
[1723088028085,0.17,156.47,156.46,10.0]
[1723088029511,20.17,156.47,156.46,10.0]
[1723088029712,6.63796468,156.49,156.46,73.7941]
[1723088029885,26.3077,156.65,156.48,36.59]
[1723088030088,28.73927943,156.65,156.54,36.59]
[1723088030290,20.0,156.64,156.54,36.59]
[1723088030804,6.384,156.64,156.53,36.59]
[1723088031009,28.73927943,156.65,156.53,36.59]
[1723088031191,28.23927943,156.65,156.53,36.59]
[1723088031512,28.23927943,156.65,156.47,21.65672572]
[1723088031513,54.62297943,156.65,156.55,36.59]
[1723088031904,48.23927943,156.65,156.53,36.59]
[1723088032409,20.0,156.63,156.53,36.59]
[1723088032581,26.3845,156.63,156.53,36.59]
[1723088032781,26.3849,156.62,156.53,36.59]
[1723088033011,45.17,156.61,156.51,36.59]
[1723088033194,20.0,156.6,156.51,36.59]
[1723088033389,45.17,156.59,156.51,36.59]
[1723088033911,45.17,156.59,156.49,36.59]
[1723088033912,0.17,156.58,156.49,36.59]
[1723088035405,0.17,156.58,156.51,36.59]
[1723088036085,6.63322021,156.64,156.53,36.59]
[1723088036285,20.0,156.67,156.56,36.59]
[1723088036585,7.48167648,156.66,156.56,36.59]
[1723088037413,9.94765305,156.66,156.56,36.59]
[1723088037719,3.31189417,156.66,156.56,36.59]
[1723088037883,9.94278856,156.66,156.56,36.59]
[1723088038302,16.32598856,156.66,156.56,36.59]
[1723088039613,6.3861,156.59,156.47,27.9973]
[1723088039814,20.0,156.6,156.47,64.5873]
[1723088040109,20.0,156.6,156.51,36.59]
[1723088040285,45.34,156.59,156.48,36.59]
[1723088041713,0.34,156.59,156.49,20.0]
[1723088041918,0.17,156.59,156.5,36.59]
[1723088042087,62.974,156.64,156.51,20.0]
[1723088042088,0.17,156.6,156.51,20.0]
[1723088042414,0.17,156.6,156.51,1.24511984]
[1723088042710,285.7913,156.65,156.52,36.59]
[1723088042903,20.0,156.63,156.52,36.59]
[1723088043206,56.59,156.63,156.5,36.59]
[1723088043786,45.17,156.62,156.5,36.59]
[1723088044011,0.17,156.61,156.5,36.59]
[1723088044425,20.17,156.61,156.5,36.59]
[1723088044710,45.17,156.6,156.5,36.59]
[1723088044894,0.17,156.59,156.5,36.59]
[1723088045096,0.17,156.59,156.49,20.0]
[1723088045291,0.17,156.59,156.48,36.59]
[1723088046627,20.17,156.59,156.48,36.59]
[1723088046929,45.17,156.58,156.47,27.9973]
[1723088047084,0.17,156.57,156.48,20.0]
[1723088047288,0.17,156.57,156.48,56.59]
[1723088047606,0.17,156.58,156.48,56.59]
[1723088048191,9.02655762,156.62,156.53,36.59]
[1723088048400,45.0,156.61,156.53,36.59]
[1723088048694,47.38537814,156.62,156.53,36.59]
[1723088048909,47.38537814,156.62,156.49,0.71979448]
[1723088048910,45.0,156.62,156.49,0.71979448]
[1723088049114,20.0,156.59,156.47,27.9973]
[1723088049415,25.7008,156.57,156.48,36.59]
[1723088049790,56.59,156.62,156.48,36.59]
[1723088049996,18.4732,156.62,156.52,36.59]
[1723088050218,0.17,156.61,156.52,36.59]
[1723088050899,260.24144674,156.65,156.58,36.59]
[1723088050900,6.64144674,156.65,156.58,36.59]
[1723088051101,0.8459176,156.66,156.58,36.59]
[1723088051622,0.8459176,156.66,156.54,36.59]
[1723088051793,0.8459176,156.66,156.55,20.0]
[1723088052411,0.8459176,156.66,156.54,36.59]
[1723088052589,0.17,156.65,156.54,36.59]
[1723088052790,0.34,156.65,156.54,36.59]
[1723088053613,45.34,156.65,156.54,36.59]
[1723088053811,65.34,156.65,156.54,36.59]
[1723088054022,62.0117,156.62,156.5,36.59]
[1723088054318,45.17,156.61,156.5,36.59]
[1723088054611,0.17,156.6,156.48,36.59]
[1723088055010,20.0,156.59,156.46,35.709]
[1723088055205,45.34,156.58,156.46,46.59]
[1723088055391,56.59,156.54,156.46,10.0]
[1723088055892,45.34,156.53,156.46,10.0]
[1723088056600,0.34,156.53,156.46,10.0]
[1723088058819,20.0,156.52,156.46,10.0]
[1723088059000,45.34,156.51,156.46,10.0]
[1723088059815,6.586,156.49,156.46,10.0]
[1723088060126,0.17,156.48,156.46,10.0]
[1723088060494,23.8955,156.49,156.46,10.0]
[1723088061924,0.17,156.48,156.46,10.0]
[1723088062214,6.63360091,156.52,156.46,10.0]
[1723088062427,26.26791006,156.53,156.46,10.0]
[1723088062792,23.7842,156.53,156.46,10.0]
[1723088063921,6.6340088,156.56,156.47,36.59]
[1723088064104,23.7842,156.57,156.47,36.59]
[1723088065006,295.6194,156.62,156.49,36.59]
[1723088065212,42.0194,156.62,156.49,36.59]
[1723088065407,48.65124088,156.62,156.49,36.59]
[1723088065906,22.26624088,156.62,156.49,36.59]
[1723088066121,22.26624088,156.62,156.51,36.59]
[1723088066319,22.26624088,156.62,156.48,23.70445827]
[1723088066320,42.26624088,156.62,156.49,36.59]
[1723088066619,44.6576093,156.62,156.49,36.59]
[1723088066931,44.6576093,156.62,156.51,36.59]
[1723088067299,6.63184088,156.62,156.55,36.59]
[1723088067502,0.8459176,156.66,156.57,36.59]
[1723088068600,0.8459176,156.66,156.59,36.59]
[1723088069333,0.8459176,156.66,156.57,36.59]
[1723088069718,0.8459176,156.66,156.52,46.92]
[1723088069943,20.0,156.65,156.48,69.3468]
[1723088070621,20.0,156.65,156.48,69.7940058]
[1723088071242,45.34,156.64,156.49,20.44717722]
[1723088071444,45.34,156.64,156.49,20.0]
[1723088071737,45.34,156.64,156.5,45.0]
[1723088071945,45.34,156.64,156.51,20.0]
[1723088072126,51.7241,156.64,156.51,20.0]
[1723088072324,20.0,156.6,156.48,69.3468]
[1723088072512,0.34,156.59,156.48,69.3468]
[1723088073724,45.34,156.6,156.48,69.3468]
[1723088074119,20.0,156.55,156.46,10.0]
[1723088074337,45.17,156.54,156.46,10.0]
[1723088074551,20.17,156.53,156.46,10.0]
[1723088074740,45.17,156.52,156.46,10.0]
[1723088075041,0.17,156.51,156.46,10.0]
[1723088075339,0.17,156.52,156.46,10.0]
[1723088076546,0.34,156.52,156.46,10.0]
[1723088077048,45.34,156.52,156.46,10.0]
[1723088077852,0.34,156.52,156.46,10.0]
[1723088078431,0.17,156.52,156.46,45.34]
[1723088078952,0.17,156.52,156.46,10.0]
[1723088079324,45.17,156.52,156.46,10.0]
[1723088079523,0.17,156.52,156.46,10.0]
[1723088079728,45.17,156.53,156.46,10.0]
[1723088080017,0.17,156.52,156.46,10.0]
[1723088080418,0.17,156.53,156.46,10.0]
[1723088082039,22.5218,156.59,156.46,10.0]
[1723088082244,20.0,156.56,156.46,10.0]
[1723088082438,0.17,156.55,156.46,10.0]
[1723088083132,45.17,156.55,156.46,10.0]
[1723088084147,0.17,156.55,156.46,10.0]
[1723088085453,20.0,156.54,156.46,10.0]
[1723088085637,20.0,156.52,156.46,10.0]
[1723088085838,45.34,156.51,156.46,10.0]
[1723088086135,0.34,156.51,156.46,10.0]
[1723088086860,45.34,156.51,156.46,10.0]
[1723088087149,67.518,156.51,156.46,10.0]
[1723088087348,16.093,156.51,156.46,10.0]
[1723088087561,0.17,156.51,156.46,10.0]
[1723088087762,22.178,156.55,156.46,10.0]
[1723088088058,20.0,156.54,156.46,10.0]
[1723088088236,20.0,156.52,156.46,10.0]
[1723088088431,26.3889,156.52,156.46,10.0]
[1723088089053,6.391,156.47,156.46,10.0]
[1723088089252,45.34,156.47,156.46,10.0]
[1723088090732,80.9722,156.47,156.46,10.0]
[1723088091044,93.6528,156.47,156.46,10.0]
[1723088091231,67.2618,156.47,156.46,10.0]
[1723088091430,45.34,156.47,156.46,10.0]
[1723088092240,65.34,156.47,156.46,10.0]
[1723088092648,45.34,156.47,156.46,10.0]
[1723088094136,65.34,156.47,156.46,10.0]
[1723088098747,91.20396837,156.47,156.46,10.0]
[1723088099551,91.96396837,156.47,156.46,10.0]
[1723088099768,98.35496837,156.47,156.46,10.0]
[1723088100075,20.0,156.44,156.36,35.34]
[1723088100249,20.0,156.42,156.36,35.34]
[1723088100578,45.34,156.41,156.36,35.34]
[1723088100748,45.34,156.41,156.34,6.3497]
[1723088101359,20.0,156.4,156.33,16.3356]
[1723088101552,45.34,156.39,156.33,16.3356]
[1723088102856,12.98196837,156.47,156.37,35.34]
[1723088103058,20.0,156.46,156.37,35.34]
[1723088103261,6.358,156.47,156.34,35.34]
[1723088103571,20.0,156.46,156.34,35.34]
[1723088104554,20.17,156.45,156.34,35.34]
[1723088104775,20.17,156.45,156.37,35.34]
[1723088104977,20.0,156.44,156.37,35.34]
[1723088105173,20.17,156.43,156.37,35.34]
[1723088105371,45.17,156.42,156.37,35.34]
[1723088105565,20.17,156.41,156.37,35.34]
[1723088105767,0.17,156.4,156.37,35.34]
[1723088106179,20.17,156.41,156.37,35.34]
[1723088106360,28.77484282,156.47,156.37,35.34]
[1723088106361,8.77484282,156.47,156.37,35.34]
[1723088107268,28.77484282,156.47,156.37,35.34]
[1723088107700,20.0,156.45,156.37,35.34]
[1723088107885,20.0,156.45,156.33,58.30108646]
[1723088108368,45.34,156.44,156.33,58.30108646]
[1723088108571,20.0,156.43,156.37,35.34]
[1723088109294,2.41684282,156.47,156.37,35.34]
[1723088109295,22.41684282,156.47,156.37,35.34]
[1723088109590,20.0,156.47,156.37,35.34]
[1723088109795,20.0,156.46,156.37,35.34]
[1723088109984,0.17,156.45,156.37,35.34]
[1723088110566,45.17,156.45,156.37,35.34]
[1723088110860,0.17,156.44,156.37,35.34]
[1723088111589,26.62538004,156.49,156.38,6.4326]
[1723088111590,20.0,156.49,156.38,6.4326]
[1723088111796,41.2717,156.51,156.38,6.4326]
[1723088112091,6.63665707,156.5,156.38,6.4326]
[1723088112968,65.34,156.49,156.38,6.4326]
[1723088113371,85.34,156.49,156.38,6.4326]
[1723088113998,65.34,156.49,156.38,6.4326]
[1723088114203,28.7106248,156.51,156.41,35.34]
[1723088114402,20.0,156.5,156.41,35.34]
[1723088115297,20.0,156.49,156.41,35.34]
[1723088115677,45.34,156.48,156.42,27.5]
[1723088117579,0.34,156.48,156.42,27.5]
[1723088118594,20.34,156.48,156.42,27.5]
[1723088118792,45.0,156.47,156.42,27.5]
[1723088119105,45.0,156.47,156.38,6.4326]
[1723088119106,20.0,156.44,156.38,6.4326]
[1723088119294,45.17,156.43,156.38,27.5]
[1723088119502,45.34,156.43,156.38,27.5]
[1723088121074,65.34,156.43,156.38,27.5]
[1723088121694,65.34,156.43,156.36,27.5]
[1723088122086,20.0,156.41,156.29,15.702]
[1723088122407,0.17,156.4,156.34,27.5]
[1723088122613,20.0,156.42,156.34,27.5]
[1723088122916,65.34,156.41,156.34,27.5]
[1723088124215,65.34,156.41,156.33,27.5]
[1723088125895,20.0,156.39,156.33,27.5]
[1723088126214,67.4082,156.38,156.29,27.5]
[1723088126912,20.0,156.37,156.29,27.5]
[1723088127098,45.34,156.36,156.29,27.5]
[1723088128509,75.60315754,156.43,156.24,33.5266]
[1723088128510,25.27465754,156.43,156.33,27.5]
[1723088128689,25.27465754,156.43,156.35,27.5]
[1723088129100,20.0,156.46,156.37,27.5]
[1723088129531,20.0,156.44,156.32,16.0428]
[1723088129688,20.0,156.44,156.33,27.5]
[1723088129882,20.0,156.44,156.35,27.5]
[1723088130312,45.34,156.43,156.35,27.5]
[1723088130794,45.34,156.43,156.34,27.5]
[1723088130996,0.17,156.43,156.34,27.5]
[1723088131309,20.17,156.43,156.34,27.5]
[1723088131700,20.0,156.43,156.32,16.0428]
[1723088131904,20.0,156.43,156.34,27.5]
[1723088132094,2.46333792,156.43,156.34,27.5]
[1723088132306,20.0,156.46,156.36,27.5]
[1723088132515,20.0,156.45,156.36,27.5]
[1723088132914,20.0,156.44,156.36,27.5]
[1723088133095,20.0,156.44,156.34,27.5]
[1723088133614,45.17,156.43,156.34,27.5]
[1723088133922,0.17,156.42,156.34,27.5]
[1723088135917,20.17,156.42,156.34,27.5]
[1723088136133,45.17,156.41,156.34,27.5]
[1723088136417,0.17,156.4,156.34,27.5]
[1723088137222,0.34,156.41,156.32,43.5428]
[1723088137422,0.34,156.4,156.32,43.5428]
[1723088138814,0.34,156.4,156.32,27.5]
[1723088139438,2.44553245,156.43,156.39,27.5]
[1723088139616,22.7944,156.47,156.39,27.5]
[1723088140124,20.0,156.45,156.33,16.81375952]
[1723088140320,20.0,156.45,156.35,27.5]
[1723088141125,0.17,156.44,156.35,27.5]
[1723088141294,0.17,156.44,156.33,43.1384]
[1723088141629,20.34,156.44,156.36,27.5]
[1723088141806,45.0,156.43,156.36,27.5]
[1723088142006,0.17,156.42,156.36,27.5]
[1723088142317,20.17,156.44,156.36,27.5]
[1723088142509,0.17,156.44,156.36,27.5]
[1723088142706,20.0,156.44,156.36,27.5]
[1723088142914,0.17,156.43,156.36,27.5]
[1723088143316,0.34,156.43,156.36,27.5]
[1723088144622,22.7944,156.47,156.4,27.5]
[1723088145243,22.53432611,156.5,156.42,27.5]
[1723088145527,2.53432611,156.5,156.42,27.5]
[1723088145695,21.6465,156.51,156.42,27.5]
[1723088146110,20.0,156.5,156.42,27.5]
[1723088146494,26.3913,156.47,156.36,6.4171]
[1723088146723,45.17,156.46,156.39,27.5]
[1723088146920,0.17,156.45,156.39,27.5]
[1723088147099,0.17,156.45,156.37,27.5]
[1723088147299,20.17,156.45,156.37,27.5]
[1723088147499,65.17,156.44,156.35,27.5]
[1723088147695,0.17,156.43,156.35,27.5]
[1723088148334,26.3932,156.42,156.33,27.5]
[1723088148497,45.34,156.41,156.33,27.5]
[1723088150321,20.0,156.39,156.31,27.5]
[1723088150514,45.34,156.38,156.31,27.5]
[1723088151427,0.34,156.38,156.31,27.5]
[1723088151645,45.34,156.38,156.31,27.5]
[1723088153144,45.34,156.38,156.33,27.5]
[1723088153717,45.34,156.38,156.32,27.5]
[1723088155037,45.34,156.38,156.3,27.5]
[1723088155842,20.0,156.37,156.3,27.5]
[1723088156025,45.34,156.36,156.3,27.5]
[1723088156221,67.0967,156.36,156.28,27.5]
[1723088156445,67.0967,156.36,156.27,27.55]
[1723088156626,67.0967,156.36,156.28,20.0]
[1723088157347,67.0967,156.36,156.29,27.55]
[1723088157646,22.0967,156.36,156.29,27.55]
[1723088159626,22.0967,156.36,156.31,27.55]
[1723088159823,21.7558,156.4,156.31,27.55]
[1723088160047,21.7558,156.4,156.33,27.55]
[1723088160257,20.0,156.43,156.35,27.55]
[1723088161340,20.0,156.43,156.28,21.44911818]
[1723088161555,21.7558,156.44,156.36,27.55]
[1723088161729,21.7558,156.44,156.38,27.55]
[1723088161931,43.1153,156.48,156.4,27.55]
[1723088162146,23.1153,156.48,156.4,27.55]
[1723088162750,43.1153,156.48,156.38,27.55]
[1723088163054,43.1153,156.48,156.36,27.55]
[1723088163263,20.0,156.46,156.36,27.55]
[1723088163846,45.34,156.45,156.36,27.55]
[1723088164034,45.34,156.45,156.37,27.55]
[1723088164237,45.34,156.45,156.35,27.55]
[1723088164434,20.0,156.42,156.33,27.55]
[1723088164629,45.17,156.41,156.33,27.55]
[1723088164848,0.17,156.4,156.33,27.55]
[1723088165057,20.17,156.4,156.31,27.55]
[1723088165342,45.17,156.39,156.29,27.55]
[1723088165534,0.17,156.38,156.29,27.55]
[1723088166936,20.17,156.38,156.29,27.55]
[1723088167130,45.17,156.37,156.29,27.55]
[1723088167333,0.17,156.36,156.29,27.55]
[1723088168757,0.17,156.37,156.31,27.55]
[1723088168948,0.34,156.37,156.31,27.55]
[1723088169133,0.34,156.38,156.31,27.55]
[1723088169553,0.17,156.37,156.31,27.55]
[1723088169760,0.34,156.39,156.31,27.55]
[1723088169939,45.34,156.39,156.31,27.55]
[1723088170145,65.34,156.39,156.31,27.55]
[1723088171235,20.0,156.37,156.29,27.55]
[1723088171433,20.0,156.37,156.26,16.1026]
[1723088171434,45.34,156.36,156.27,27.55]
[1723088171657,45.34,156.36,156.28,20.0]
[1723088172277,45.34,156.36,156.24,9.47496291]
[1723088172278,26.3967,156.33,156.24,9.47496291]
[1723088172432,20.0,156.31,156.21,27.55]
[1723088172638,20.0,156.29,156.21,27.55]
[1723088172967,45.34,156.28,156.2,27.55]
[1723088173264,20.0,156.32,156.24,27.55]
[1723088173447,45.17,156.31,156.24,27.55]
[1723088173645,0.17,156.31,156.24,27.55]
[1723088173834,20.17,156.31,156.19,35.44]
[1723088174039,45.0,156.3,156.19,35.44]
[1723088174240,0.17,156.29,156.19,35.44]
[1723088174453,48.64362567,156.35,156.19,35.44]
[1723088174670,45.34,156.34,156.22,35.44]
[1723088175362,20.0,156.32,156.19,35.44]
[1723088175564,28.64362567,156.35,156.22,35.44]
[1723088175778,28.64362567,156.35,156.18,34.2651]
[1723088175779,22.0217,156.35,156.26,35.44]
[1723088175949,6.2835,156.35,156.27,20.0]
[1723088176670,6.2835,156.35,156.25,6.5868]
[1723088176958,6.2835,156.35,156.23,80.44]
[1723088177150,20.0,156.34,156.24,20.0]
[1723088177347,0.17,156.34,156.24,20.0]
[1723088177560,0.17,156.34,156.25,1.27765139]
[1723088177757,21.4917,156.39,156.26,50.7158]
[1723088177942,21.4917,156.39,156.27,65.0]
[1723088179072,6.4784,156.39,156.3,35.44]
[1723088179269,22.9973,156.43,156.31,65.46014599]
[1723088179578,25.42256091,156.43,156.31,65.0]
[1723088180447,22.9973,156.43,156.32,1.2788949]
[1723088180682,22.9973,156.43,156.33,1.27881309]
[1723088180975,6.4784,156.43,156.33,1.27881309]
[1723088181555,6.4784,156.43,156.32,1.27881309]
[1723088181754,28.74647446,156.47,156.34,35.44]
[1723088182078,31.22721243,156.47,156.35,21.27866371]
[1723088182367,31.22721243,156.47,156.35,20.0]
[1723088182777,0.34,156.46,156.35,20.0]
[1723088183354,0.34,156.46,156.32,20.0]
[1723088183559,0.34,156.46,156.33,45.0]
[1723088183748,20.0,156.45,156.34,20.0]
[1723088183947,0.34,156.44,156.34,20.0]
[1723088184171,0.34,156.44,156.31,20.0]
[1723088184382,20.0,156.43,156.3,35.44]
[1723088184548,0.34,156.42,156.29,6.3366]
[1723088184746,21.9377,156.4,156.27,35.44]
[1723088184952,0.34,156.39,156.27,35.44]
[1723088185849,6.4592,156.4,156.3,35.44]
[1723088186073,0.17,156.39,156.27,35.44]
[1723088186256,0.34,156.39,156.27,35.44]
[1723088186657,0.34,156.39,156.28,65.0]
[1723088187977,0.34,156.39,156.28,20.0]
[1723088188477,0.34,156.39,156.29,1.20411471]
[1723088188650,0.34,156.39,156.3,1.20403767]
[1723088188858,0.34,156.39,156.28,20.0]
[1723088189275,20.34,156.39,156.28,20.0]
[1723088189476,45.0,156.38,156.28,20.0]
[1723088189662,0.34,156.37,156.28,20.0]
[1723088190277,0.34,156.37,156.27,35.44]
[1723088191288,16.4565,156.36,156.27,35.44]
[1723088191586,45.34,156.35,156.24,35.44]
[1723088191772,45.34,156.35,156.25,45.0]
[1723088192480,6.6568,156.33,156.22,35.44]
[1723088192861,45.34,156.32,156.22,35.44]
[1723088194292,0.34,156.32,156.23,45.0]
[1723088194580,6.6568,156.33,156.25,35.44]
[1723088195385,45.34,156.32,156.22,35.44]
[1723088195769,45.34,156.32,156.19,51.5264]
[1723088196870,45.34,156.32,156.2,20.0]
[1723088197793,45.34,156.32,156.24,27.56]
[1723088198685,15.3285,156.31,156.24,27.56]
[1723088198864,0.34,156.3,156.24,27.56]
[1723088199070,0.34,156.3,156.26,27.56]
[1723088199265,0.17,156.3,156.26,27.56]
[1723088199496,15.3285,156.31,156.26,27.56]
[1723088200188,15.3285,156.31,156.28,27.56]
[1723088200371,6.6568,156.33,156.3,27.56]
[1723088201268,15.3285,156.36,156.32,27.56]
[1723088201475,16.2062,156.4,156.34,27.56]
[1723088202477,16.2062,156.4,156.36,27.56]
[1723088203074,16.2062,156.4,156.34,27.56]
[1723088203276,16.2062,156.4,156.32,27.56]
[1723088203783,0.34,156.39,156.29,35.4]
[1723088204095,0.34,156.39,156.3,21.27914354]
[1723088204262,45.34,156.39,156.28,35.4]
[1723088204466,45.34,156.39,156.25,6.6286]
[1723088204685,45.34,156.39,156.26,45.17]
[1723088204884,45.34,156.39,156.26,45.0]
[1723088206292,45.34,156.39,156.27,20.0]
[1723088207499,20.0,156.37,156.27,20.0]
[1723088207684,45.34,156.36,156.24,51.6298]
[1723088207885,45.34,156.36,156.25,45.0]
[1723088208192,45.34,156.36,156.24,51.6298]
[1723088208495,0.34,156.36,156.24,51.6298]
[1723088208685,0.17,156.36,156.24,51.6298]
[1723088208890,0.17,156.36,156.25,20.0]
[1723088209201,0.17,156.36,156.27,35.4]
[1723088209492,0.17,156.36,156.28,20.0]
[1723088210692,18.67233551,156.4,156.28,20.0]
[1723088210896,45.34,156.39,156.28,20.0]
[1723088211195,65.34,156.39,156.28,20.0]
[1723088211697,20.0,156.37,156.24,51.6298]
[1723088211899,20.0,156.37,156.09,390.3]
[1723088211900,20.0,156.28,156.11,7.1261176]
[1723088212072,20.0,156.3,156.13,35.4]
[1723088212270,20.0,156.3,156.14,0.87706324]
[1723088212503,45.34,156.29,156.14,0.87706324]
[1723088213080,45.34,156.29,156.13,36.27706324]
[1723088213275,20.0,156.28,156.13,36.27706324]
[1723088213598,45.34,156.27,156.13,36.18032508]
[1723088214597,6.5208,156.25,156.13,34.9]
[1723088214903,45.17,156.24,156.13,34.9]
[1723088215075,45.34,156.24,156.13,34.9]
[1723088216085,45.34,156.24,156.14,20.0]
[1723088219103,45.34,156.24,156.14,19.5]
[1723088221376,6.5208,156.25,156.14,19.5]
[1723088221581,6.5208,156.25,156.18,35.4]
[1723088222097,6.5208,156.25,156.15,35.4]
[1723088222299,26.5208,156.25,156.14,19.5]
[1723088222819,6.5208,156.25,156.13,20.0]
[1723088223094,6.5208,156.25,156.15,35.4]
[1723088223280,6.5208,156.25,156.16,66.18093872]
[1723088223487,6.5208,156.25,156.18,35.4]
[1723088223681,15.1597,156.26,156.23,27.57]
[1723088225481,15.1597,156.26,156.15,16.3345]
[1723088225684,15.1597,156.26,156.16,35.46]
[1723088226291,0.17,156.25,156.16,35.46]
[1723088226491,0.17,156.25,156.17,0.76975514]
[1723088226697,0.34,156.25,156.16,35.46]
[1723088227196,0.34,156.25,156.17,20.0]
[1723088228505,0.34,156.25,156.17,21.17670983]
[1723088228999,0.34,156.25,156.18,1.17663448]
[1723088229508,15.1597,156.26,156.18,1.17663448]
[1723088229687,15.1597,156.26,156.18,46.17663448]
[1723088229876,15.1597,156.26,156.19,20.0]
[1723088230085,15.1597,156.26,156.2,1.17648382]
[1723088230296,15.1597,156.26,156.19,35.46]
[1723088230493,15.1597,156.26,156.2,65.0]
[1723088232407,6.5434,156.29,156.2,65.0]
[1723088232792,6.5434,156.29,156.21,1.17847014]
[1723088233108,6.5434,156.29,156.2,65.0]
[1723088233280,6.5434,156.29,156.21,1.17793369]
[1723088234208,20.0,156.35,156.22,51.7108]
[1723088234209,22.1571,156.35,156.22,51.7108]
[1723088234506,22.1571,156.35,156.23,65.17]
[1723088235213,22.1571,156.35,156.25,35.46]
[1723088235389,22.1571,156.35,156.26,66.01092501]
[1723088235900,22.1571,156.35,156.26,65.17]
[1723088236102,22.1571,156.35,156.26,65.0]
[1723088236311,0.17,156.34,156.26,20.0]
[1723088236486,0.34,156.34,156.26,20.0]
[1723088238304,45.34,156.34,156.26,20.0]
[1723088239199,45.34,156.34,156.25,35.46]
[1723088240516,22.1571,156.35,156.25,35.46]
[1723088240717,22.1571,156.35,156.28,35.46]
[1723088242209,22.1571,156.35,156.26,20.0]
[1723088242414,22.1571,156.35,156.25,20.0]
[1723088242716,22.1571,156.35,156.24,35.46]
[1723088243131,45.34,156.34,156.24,35.46]
[1723088244098,45.34,156.34,156.25,20.0]
[1723088245010,0.34,156.34,156.25,20.0]
[1723088245214,22.1571,156.35,156.27,35.46]
[1723088245517,22.1571,156.35,156.28,45.0]